[Event "*** Titled Tuesday Blitz"]
[Site "Chess.com"]
[Date "2018.08.07"]
[Round "2"]
[White "vovachesss"]
[Black "ftorodent"]
[Result "0-1"]
[WhiteElo "2432"]
[BlackElo "2506"]
[TimeControl "180+2"]
[EndTime "13:22:46 PDT"]
[Termination "ftorodent won by resignation"]

1. e4 {[%clk 0:03:00]} 1... e6 {[%clk 0:02:59.4]} 2. d4 {[%clk 0:02:54.8]} 2...
d5 {[%clk 0:02:59.5]} 3. Nc3 {[%clk 0:02:56]} 3... Bb4 {[%clk 0:02:59.4]} 4.
exd5 {[%clk 0:02:56.3]} 4... exd5 {[%clk 0:02:59.7]} 5. Bd3 {[%clk 0:02:55.8]}
5... Ne7 {[%clk 0:02:56.7]} 6. Ne2 {[%clk 0:02:55.8]} 6... Bf5 {[%clk
0:02:54.8]} 7. f3 {[%clk 0:02:49]} 7... O-O {[%clk 0:02:49.6]} 8. a3 {[%clk
0:02:25.8]} 8... Ba5 {[%clk 0:02:36.5]} 9. Bf4 {[%clk 0:02:20.6]} 9... Nbc6
{[%clk 0:02:30.9]} 10. Qd2 {[%clk 0:02:17.6]} 10... Qd7 {[%clk 0:02:25.2]} 11.
g4 {[%clk 0:01:57]} 11... Bxd3 {[%clk 0:02:17.9]} 12. Qxd3 {[%clk 0:01:58.9]}
12... Rae8 {[%clk 0:02:17.5]} 13. O-O-O {[%clk 0:01:56.1]} 13... a6 {[%clk
0:02:09.4]} 14. h4 {[%clk 0:01:32.5]} 14... b5 {[%clk 0:02:08.7]} 15. h5 {[%clk
0:01:23.6]} 15... b4 {[%clk 0:01:51.8]} 16. Nb1 {[%clk 0:01:22.5]} 16... bxa3
{[%clk 0:01:35.5]} 17. Qxa3 {[%clk 0:01:06.4]} 17... Nc8 {[%clk 0:01:30.2]} 18.
Ng3 {[%clk 0:00:55.4]} 18... Nb6 {[%clk 0:01:23.9]} 19. Nf5 {[%clk 0:00:49.1]}
19... Nc4 {[%clk 0:01:19.7]} 20. Qa4 {[%clk 0:00:49.5]} 20... Nxd4 {[%clk
0:00:42.4]} 21. Qxc4 {[%clk 0:00:39.4]} 21... Ne2+ {[%clk 0:00:33.1]} 22. Qxe2
{[%clk 0:00:38.2]} 22... Rxe2 {[%clk 0:00:33.8]} 23. Rd3 {[%clk 0:00:37.3]}
23... Qa4 {[%clk 0:00:27.9]} 24. Nd4 {[%clk 0:00:36.4]} 24... Rf2 {[%clk
0:00:21.3]} 25. Be3 {[%clk 0:00:33.6]} 25... Rg2 {[%clk 0:00:21.2]} 26. Ra3
{[%clk 0:00:34]} 26... Qb4 {[%clk 0:00:18.1]} 27. Rd1 {[%clk 0:00:34.1]} 27...
c5 {[%clk 0:00:17.3]} 28. Nc6 {[%clk 0:00:31.1]} 28... Qc4 {[%clk 0:00:15.5]}
29. c3 {[%clk 0:00:24.5]} 29... d4 {[%clk 0:00:15.9]} 30. Nxa5 {[%clk
0:00:24.1]} 30... Qe2 {[%clk 0:00:16.4]} 31. Bd2 {[%clk 0:00:24.8]} 31... Qxf3
{[%clk 0:00:16]} 32. cxd4 {[%clk 0:00:25]} 32... Qxg4 {[%clk 0:00:17]} 33. dxc5
{[%clk 0:00:25.4]} 33... Rc8 {[%clk 0:00:17.2]} 34. Rc3 {[%clk 0:00:25.8]} 34...
Qxh5 {[%clk 0:00:17.7]} 35. Nb3 {[%clk 0:00:24.9]} 35... a5 {[%clk 0:00:17]} 36.
c6 {[%clk 0:00:24.7]} 36... a4 {[%clk 0:00:17]} 37. Nd4 {[%clk 0:00:25.5]} 37...
Qd5 {[%clk 0:00:17.8]} 38. Nc2 {[%clk 0:00:24.5]} 38... Rxc6 {[%clk 0:00:17.5]}
39. Bf4 {[%clk 0:00:23.5]} 39... Rxc2+ {[%clk 0:00:18.4]} 40. Kxc2 {[%clk
0:00:22.3]} 40... Qe4+ {[%clk 0:00:19.3]} 41. Rd3 {[%clk 0:00:21.5]} 41... h6
{[%clk 0:00:14.7]} 42. Nd2 {[%clk 0:00:20.4]} 42... Rxc3+ {[%clk 0:00:14.3]} 43.
bxc3 {[%clk 0:00:20.2]} 43... Qxf4 {[%clk 0:00:15.8]} 44. Rd4 {[%clk 0:00:21.8]}
44... Qf5+ {[%clk 0:00:16]} 45. Kb2 {[%clk 0:00:22.5]} 45... Qb5+ {[%clk
0:00:16.9]} 46. Rb4 {[%clk 0:00:23.3]} 46... Qe2 {[%clk 0:00:17.7]} 47. Kc1
{[%clk 0:00:23.4]} 47... a3 {[%clk 0:00:17.3]} 48. Ra4 {[%clk 0:00:24.6]} 48...
h5 {[%clk 0:00:16.2]} 49. Rxa3 {[%clk 0:00:25.3]} 49... h4 {[%clk 0:00:16.7]}
50. Ra8+ {[%clk 0:00:26.6]} 50... Kh7 {[%clk 0:00:16.9]} 51. Ra4 {[%clk
0:00:28.5]} 51... g5 {[%clk 0:00:15.8]} 52. Ne4 {[%clk 0:00:28.2]} 52... Qe3+
{[%clk 0:00:16.6]} 53. Kc2 {[%clk 0:00:28.8]} 53... h3 {[%clk 0:00:17.8]} 54.
Nf6+ {[%clk 0:00:29.3]} 54... Kg6 {[%clk 0:00:18.5]} 55. Ng4 {[%clk 0:00:30.5]}
55... Qe2+ {[%clk 0:00:18.4]} 56. Kb3 {[%clk 0:00:31.8]} 56... h2 {[%clk
0:00:16.1]} 57. Ra6+ {[%clk 0:00:32.8]} 57... Kg7 {[%clk 0:00:17.1]} 58. Nxh2
{[%clk 0:00:32.9]} 58... Qxa6 {[%clk 0:00:17.8]} 0-1

[Event "*** Titled Tuesday Blitz"]
[Site "Chess.com"]
[Date "2018.08.07"]
[Round "2"]
[White "djamir"]
[Black "INDIAN-ELEPHANT"]
[Result "1/2-1/2"]
[WhiteElo "2648"]
[BlackElo "2716"]
[TimeControl "180+2"]
[EndTime "13:22:47 PDT"]
[Termination "Game drawn by repetition"]

1. d4 {[%clk 0:03:01.9]} 1... Nf6 {[%clk 0:02:58.6]} 2. Nf3 {[%clk 0:03:01.9]}
2... e6 {[%clk 0:02:59.5]} 3. Bf4 {[%clk 0:03:02]} 3... b6 {[%clk 0:02:58.4]} 4.
e3 {[%clk 0:03:02.9]} 4... Bb7 {[%clk 0:02:59.2]} 5. Bd3 {[%clk 0:03:00.2]} 5...
d6 {[%clk 0:02:59.8]} 6. O-O {[%clk 0:02:59.1]} 6... g6 {[%clk 0:03:00.3]} 7.
Qe2 {[%clk 0:02:51.6]} 7... d5 {[%clk 0:02:47.1]} 8. c4 {[%clk 0:02:48.7]} 8...
Bg7 {[%clk 0:02:47.6]} 9. Nc3 {[%clk 0:02:48.5]} 9... O-O {[%clk 0:02:47.6]} 10.
Rac1 {[%clk 0:02:49.2]} 10... dxc4 {[%clk 0:02:44.9]} 11. Bxc4 {[%clk
0:02:49.7]} 11... a6 {[%clk 0:02:46.5]} 12. Rfd1 {[%clk 0:02:44.8]} 12... b5
{[%clk 0:02:38.5]} 13. Bb3 {[%clk 0:02:45]} 13... c6 {[%clk 0:02:31]} 14. e4
{[%clk 0:02:38.2]} 14... Nbd7 {[%clk 0:02:26.2]} 15. Bd6 {[%clk 0:02:34.3]}
15... Re8 {[%clk 0:02:26.2]} 16. e5 {[%clk 0:02:35.7]} 16... Nd5 {[%clk
0:02:26.3]} 17. Nxd5 {[%clk 0:02:28.4]} 17... exd5 {[%clk 0:02:21.7]} 18. Qd2
{[%clk 0:02:16.9]} 18... Nb6 {[%clk 0:02:19.7]} 19. h4 {[%clk 0:01:39.3]} 19...
Nc4 {[%clk 0:02:19.1]} 20. Bxc4 {[%clk 0:01:40.5]} 20... bxc4 {[%clk 0:02:15.2]}
21. b3 {[%clk 0:01:38.7]} 21... Bc8 {[%clk 0:02:00.4]} 22. bxc4 {[%clk
0:01:34.2]} 22... Bg4 {[%clk 0:02:01.4]} 23. Qf4 {[%clk 0:01:34.5]} 23... h5
{[%clk 0:01:57.2]} 24. cxd5 {[%clk 0:01:35.2]} 24... cxd5 {[%clk 0:01:54.4]} 25.
Rc7 {[%clk 0:01:35.5]} 25... f6 {[%clk 0:01:39.5]} 26. exf6 {[%clk 0:01:10.1]}
26... Qxf6 {[%clk 0:01:38.7]} 27. Rxg7+ {[%clk 0:01:01.8]} 27... Qxg7 {[%clk
0:01:36.4]} 28. Be5 {[%clk 0:01:01.9]} 28... Qf8 {[%clk 0:01:20.8]} 29. Qg5
{[%clk 0:00:57.1]} 29... Qf5 {[%clk 0:01:18.4]} 30. Qh6 {[%clk 0:00:57]} 30...
Rxe5 {[%clk 0:01:10]} 31. dxe5 {[%clk 0:00:58.3]} 31... Bxf3 {[%clk 0:01:10.5]}
32. gxf3 {[%clk 0:01:00.2]} 32... Rd8 {[%clk 0:01:02.7]} 33. Rd4 {[%clk
0:00:45.7]} 33... Rf8 {[%clk 0:00:49]} 34. Rxd5 {[%clk 0:00:43.2]} 34... Qxf3
{[%clk 0:00:45.3]} 35. Qxg6+ {[%clk 0:00:39.3]} 35... Kh8 {[%clk 0:00:46.3]} 36.
Qh6+ {[%clk 0:00:32.8]} 36... Kg8 {[%clk 0:00:47]} 37. Rd2 {[%clk 0:00:27.5]}
37... Qg4+ {[%clk 0:00:44.8]} 38. Kh2 {[%clk 0:00:28.7]} 38... Qxh4+ {[%clk
0:00:43.4]} 39. Kg2 {[%clk 0:00:29.6]} 39... Qg4+ {[%clk 0:00:44]} 40. Kh2
{[%clk 0:00:31.1]} 40... Qh4+ {[%clk 0:00:28.6]} 41. Kg2 {[%clk 0:00:32.1]}
41... Qe4+ {[%clk 0:00:29]} 42. Kh2 {[%clk 0:00:30.2]} 42... Qxe5+ {[%clk
0:00:29.6]} 43. Kg1 {[%clk 0:00:29.3]} 43... Qe1+ {[%clk 0:00:21.8]} 44. Kg2
{[%clk 0:00:30.4]} 44... Qe4+ {[%clk 0:00:22.2]} 45. Kg1 {[%clk 0:00:31.3]}
45... Qg4+ {[%clk 0:00:22.8]} 46. Kh2 {[%clk 0:00:32.7]} 46... Re8 {[%clk
0:00:21.9]} 47. Rd3 {[%clk 0:00:17.3]} 47... Qh4+ {[%clk 0:00:21.8]} 48. Kg2
{[%clk 0:00:16]} 48... Qe4+ {[%clk 0:00:22.2]} 49. Rf3 {[%clk 0:00:17.2]} 49...
h4 {[%clk 0:00:20.5]} 50. Qg5+ {[%clk 0:00:16.3]} 50... Kh7 {[%clk 0:00:21.2]}
51. Qh5+ {[%clk 0:00:16.8]} 51... Kg7 {[%clk 0:00:20.9]} 52. Qg5+ {[%clk
0:00:15.3]} 52... Kh7 {[%clk 0:00:21]} 53. Qh5+ {[%clk 0:00:16.6]} 53... Kg7
{[%clk 0:00:21.9]} 54. Qg5+ {[%clk 0:00:17.4]} 54... Kh8 {[%clk 0:00:23.1]} 55.
Qh6+ {[%clk 0:00:17.4]} 55... Kg8 {[%clk 0:00:22]} 56. Qg5+ {[%clk 0:00:18.7]}
56... Kh7 {[%clk 0:00:19.1]} 57. Qh5+ {[%clk 0:00:20]} 1/2-1/2

[Event "*** Titled Tuesday Blitz"]
[Site "Chess.com"]
[Date "2018.08.07"]
[Round "2"]
[White "Chakraborty-ARZ"]
[Black "PulpanJ"]
[Result "1-0"]
[WhiteElo "2435"]
[BlackElo "2519"]
[TimeControl "180+2"]
[EndTime "13:22:56 PDT"]
[Termination "Chakraborty-ARZ won by checkmate"]

1. d4 {[%clk 0:03:01.9]} 1... Nf6 {[%clk 0:02:59.6]} 2. Bf4 {[%clk 0:03:02.6]}
2... d5 {[%clk 0:02:58.2]} 3. e3 {[%clk 0:03:03.5]} 3... c5 {[%clk 0:02:47.3]}
4. c3 {[%clk 0:03:04.2]} 4... Nc6 {[%clk 0:02:45.3]} 5. Nd2 {[%clk 0:03:04.3]}
5... e6 {[%clk 0:02:46.3]} 6. Ngf3 {[%clk 0:03:04.8]} 6... cxd4 {[%clk
0:02:46.6]} 7. exd4 {[%clk 0:03:05.2]} 7... Nh5 {[%clk 0:02:47.6]} 8. Bg5 {[%clk
0:03:04.6]} 8... f6 {[%clk 0:02:44.9]} 9. Be3 {[%clk 0:03:01.7]} 9... Bd6 {[%clk
0:02:46]} 10. g3 {[%clk 0:02:25.9]} 10... g6 {[%clk 0:02:45.6]} 11. Bg2 {[%clk
0:02:20.7]} 11... Ng7 {[%clk 0:02:45]} 12. Nb3 {[%clk 0:02:13.6]} 12... Nf5
{[%clk 0:02:42.7]} 13. Bd2 {[%clk 0:02:13.2]} 13... O-O {[%clk 0:02:42.3]} 14.
O-O {[%clk 0:02:14]} 14... Bd7 {[%clk 0:02:32.2]} 15. Re1 {[%clk 0:02:13.2]}
15... Qc7 {[%clk 0:02:31.8]} 16. Rc1 {[%clk 0:02:07.1]} 16... Rae8 {[%clk
0:02:29.9]} 17. a3 {[%clk 0:01:55]} 17... b5 {[%clk 0:02:29.6]} 18. Qe2 {[%clk
0:01:45.6]} 18... a6 {[%clk 0:02:27.9]} 19. Qd3 {[%clk 0:01:46.2]} 19... Na5
{[%clk 0:02:22.7]} 20. Nxa5 {[%clk 0:01:44.6]} 20... Qxa5 {[%clk 0:02:24.6]} 21.
Qb1 {[%clk 0:01:33.3]} 21... Qc7 {[%clk 0:02:22.4]} 22. Re2 {[%clk 0:01:27.5]}
22... Rf7 {[%clk 0:02:20.7]} 23. Rce1 {[%clk 0:01:28.2]} 23... Bf8 {[%clk
0:02:20.6]} 24. Bc1 {[%clk 0:01:23.9]} 24... Nd6 {[%clk 0:02:21.6]} 25. Nd2
{[%clk 0:01:18.7]} 25... f5 {[%clk 0:02:20.4]} 26. Nf3 {[%clk 0:01:16.7]} 26...
Nc4 {[%clk 0:02:17.7]} 27. Qa2 {[%clk 0:01:11.3]} 27... Bd6 {[%clk 0:02:15.8]}
28. Bh6 {[%clk 0:00:52]} 28... f4 {[%clk 0:02:10.9]} 29. Ng5 {[%clk 0:00:46]}
29... Rf6 {[%clk 0:02:02.3]} 30. Bxd5 {[%clk 0:00:42.1]} 30... fxg3 {[%clk
0:01:58.2]} 31. hxg3 {[%clk 0:00:37.5]} 31... Bxg3 {[%clk 0:01:59]} 32. Ne4
{[%clk 0:00:28.5]} 32... Bh2+ {[%clk 0:01:46.9]} 33. Kh1 {[%clk 0:00:24.8]}
33... Rf5 {[%clk 0:01:46.3]} 34. Bxc4 {[%clk 0:00:22.1]} 34... bxc4 {[%clk
0:01:48.2]} 35. Qb1 {[%clk 0:00:18.7]} 35... Bc6 {[%clk 0:01:47.3]} 36. f3
{[%clk 0:00:11.6]} 36... Rxf3 {[%clk 0:01:45.3]} 37. Rxh2 {[%clk 0:00:11.6]}
37... Qg3 {[%clk 0:01:40.7]} 38. Rg1 {[%clk 0:00:09.5]} 38... Qc7 {[%clk
0:01:29.6]} 39. Qe1 {[%clk 0:00:09.5]} 39... Rf5 {[%clk 0:01:24.8]} 40. Rg4
{[%clk 0:00:10]} 40... e5 {[%clk 0:01:22.6]} 41. d5 {[%clk 0:00:09.9]} 41...
Bxd5 {[%clk 0:01:23.5]} 42. Kg1 {[%clk 0:00:10.4]} 42... Qb6+ {[%clk 0:01:16.6]}
43. Qe3 {[%clk 0:00:10.6]} 43... Qc6 {[%clk 0:01:15.4]} 44. Rf2 {[%clk
0:00:10.4]} 44... Rxf2 {[%clk 0:01:14.5]} 45. Nxf2 {[%clk 0:00:12.3]} 45... Qe6
{[%clk 0:01:12.8]} 46. Bg5 {[%clk 0:00:10.5]} 46... h5 {[%clk 0:01:09.9]} 47.
Rg3 {[%clk 0:00:11.6]} 47... Rf8 {[%clk 0:01:09.3]} 48. Bh4 {[%clk 0:00:12.3]}
48... Qf5 {[%clk 0:01:05.5]} 49. Rg5 {[%clk 0:00:10]} 49... Qf7 {[%clk
0:00:54.9]} 50. Rxe5 {[%clk 0:00:06.9]} 50... Bb7 {[%clk 0:00:42.1]} 51. Re7
{[%clk 0:00:07.9]} 51... Qd5 {[%clk 0:00:43]} 52. Qg3 {[%clk 0:00:05.8]} 52...
Kh8 {[%clk 0:00:35.4]} 53. Rc7 {[%clk 0:00:05.2]} 53... Re8 {[%clk 0:00:21.6]}
54. Re7 {[%clk 0:00:05.7]} 54... Rxe7 {[%clk 0:00:21.7]} 55. Bxe7 {[%clk
0:00:07.6]} 55... Kh7 {[%clk 0:00:19.3]} 56. Bf6 {[%clk 0:00:08.1]} 56... Qf7
{[%clk 0:00:19.4]} 57. Bd4 {[%clk 0:00:08.6]} 57... Bd5 {[%clk 0:00:18.8]} 58.
Qe5 {[%clk 0:00:09.2]} 58... Qd7 {[%clk 0:00:16.7]} 59. Qh8# {[%clk 0:00:09.7]}
1-0

[Event "*** Titled Tuesday Blitz"]
[Site "Chess.com"]
[Date "2018.08.07"]
[Round "2"]
[White "Korchmar_Vasiliy"]
[Black "ShimanovAlex"]
[Result "0-1"]
[WhiteElo "2613"]
[BlackElo "2771"]
[TimeControl "180+2"]
[EndTime "13:23:33 PDT"]
[Termination "ShimanovAlex won by resignation"]

1. d4 {[%clk 0:03:00.2]} 1... g6 {[%clk 0:03:00.6]} 2. e4 {[%clk 0:03:00.7]}
2... Bg7 {[%clk 0:03:01.3]} 3. Nc3 {[%clk 0:03:02.1]} 3... d6 {[%clk 0:03:02.1]}
4. f4 {[%clk 0:03:03.6]} 4... Nf6 {[%clk 0:03:02.2]} 5. Nf3 {[%clk 0:03:05.1]}
5... O-O {[%clk 0:03:03.1]} 6. Bd3 {[%clk 0:03:06.6]} 6... Nc6 {[%clk
0:03:02.9]} 7. O-O {[%clk 0:02:56.4]} 7... Bg4 {[%clk 0:03:03.3]} 8. e5 {[%clk
0:02:30.6]} 8... dxe5 {[%clk 0:03:00.6]} 9. dxe5 {[%clk 0:02:30.1]} 9... Nd5
{[%clk 0:02:50]} 10. h3 {[%clk 0:02:20.7]} 10... Nxc3 {[%clk 0:02:49.5]} 11.
bxc3 {[%clk 0:02:20.7]} 11... Bf5 {[%clk 0:02:43.6]} 12. Qe2 {[%clk 0:02:10.7]}
12... Qd5 {[%clk 0:02:37.8]} 13. Be3 {[%clk 0:01:55.9]} 13... Rfd8 {[%clk
0:02:35.5]} 14. Bc4 {[%clk 0:01:51.9]} 14... Qa5 {[%clk 0:02:29.6]} 15. Ng5
{[%clk 0:01:44.2]} 15... Rf8 {[%clk 0:02:00.2]} 16. g4 {[%clk 0:01:44.8]} 16...
Bc8 {[%clk 0:01:57.9]} 17. Qe1 {[%clk 0:00:53]} 17... h6 {[%clk 0:01:33.2]} 18.
Ne4 {[%clk 0:00:53.8]} 18... b6 {[%clk 0:01:27.3]} 19. Bb3 {[%clk 0:00:45.2]}
19... Bb7 {[%clk 0:01:23.5]} 20. Rd1 {[%clk 0:00:30]} 20... Rad8 {[%clk
0:01:22.9]} 21. Qf2 {[%clk 0:00:26.6]} 21... Nb8 {[%clk 0:01:01.5]} 22. Ng3
{[%clk 0:00:20.2]} 22... e6 {[%clk 0:01:00]} 23. Rxd8 {[%clk 0:00:18]} 23...
Rxd8 {[%clk 0:01:00.6]} 24. f5 {[%clk 0:00:17]} 24... Qxe5 {[%clk 0:01:01.4]}
25. fxg6 {[%clk 0:00:16.5]} 25... fxg6 {[%clk 0:01:02.5]} 26. Bd4 {[%clk
0:00:12]} 26... Rxd4 {[%clk 0:01:03.1]} 27. cxd4 {[%clk 0:00:08.1]} 27... Qd6
{[%clk 0:00:56.9]} 28. c3 {[%clk 0:00:08.7]} 28... Kh7 {[%clk 0:00:56]} 29. Bc2
{[%clk 0:00:09.5]} 29... Nd7 {[%clk 0:00:55]} 30. Be4 {[%clk 0:00:10.4]} 30...
Ba6 {[%clk 0:00:56.1]} 31. Re1 {[%clk 0:00:09.8]} 31... Nf6 {[%clk 0:00:57]} 32.
Bg2 {[%clk 0:00:10.1]} 32... Nd5 {[%clk 0:00:57]} 33. Ne4 {[%clk 0:00:10.9]}
33... Qd8 {[%clk 0:00:56]} 34. Bf1 {[%clk 0:00:10.8]} 34... Bb7 {[%clk
0:00:56.5]} 35. Bg2 {[%clk 0:00:12]} 35... Ba6 {[%clk 0:00:56.6]} 36. Qf7 {[%clk
0:00:11.6]} 36... Qh4 {[%clk 0:00:50.9]} 37. Qf2 {[%clk 0:00:08.1]} 37... Qe7
{[%clk 0:00:50.2]} 38. Bf1 {[%clk 0:00:07.9]} 38... Bb7 {[%clk 0:00:50.5]} 39.
Bg2 {[%clk 0:00:09.1]} 39... Ba6 {[%clk 0:00:51]} 40. Bf1 {[%clk 0:00:10]} 40...
Bc8 {[%clk 0:00:51.8]} 41. Bg2 {[%clk 0:00:11.1]} 41... g5 {[%clk 0:00:49.4]}
42. Qc2 {[%clk 0:00:09.2]} 42... Kh8 {[%clk 0:00:50.1]} 43. Ng3 {[%clk
0:00:09.9]} 43... Nf4 {[%clk 0:00:51.3]} 44. Nf5 {[%clk 0:00:10.7]} 44... Qf6
{[%clk 0:00:49.6]} 45. Nxg7 {[%clk 0:00:11.8]} 45... Kxg7 {[%clk 0:00:51.5]} 46.
Qe4 {[%clk 0:00:12]} 46... Ba6 {[%clk 0:00:51.3]} 47. Qc6 {[%clk 0:00:10.5]}
47... Qf7 {[%clk 0:00:50.8]} 48. Bf1 {[%clk 0:00:06.7]} 48... Bxf1 {[%clk
0:00:46]} 49. Rxf1 {[%clk 0:00:06.4]} 49... Nxh3+ {[%clk 0:00:47.3]} 50. Kg2
{[%clk 0:00:06.8]} 50... Nf4+ {[%clk 0:00:49.2]} 51. Kh2 {[%clk 0:00:07.5]}
51... h5 {[%clk 0:00:50]} 52. Qe4 {[%clk 0:00:06.6]} 52... hxg4 {[%clk
0:00:50.6]} 53. Qe5+ {[%clk 0:00:07.8]} 53... Kg6 {[%clk 0:00:51.6]} 54. Qe4+
{[%clk 0:00:08.4]} 54... Qf5 {[%clk 0:00:48.2]} 55. Re1 {[%clk 0:00:05.7]} 55...
Kf7 {[%clk 0:00:45.5]} 56. Qxf5+ {[%clk 0:00:04.2]} 56... exf5 {[%clk
0:00:46.6]} 57. Re5 {[%clk 0:00:05.3]} 57... Kf6 {[%clk 0:00:47.7]} 58. Re8
{[%clk 0:00:05.8]} 58... Ne6 {[%clk 0:00:38.8]} 59. Kg3 {[%clk 0:00:05.1]} 59...
Ng7 {[%clk 0:00:36.9]} 60. Rc8 {[%clk 0:00:03.5]} 60... Nh5+ {[%clk 0:00:37.9]}
61. Kf2 {[%clk 0:00:04]} 61... f4 {[%clk 0:00:38.2]} 62. Rxc7 {[%clk 0:00:05.2]}
62... g3+ {[%clk 0:00:34.9]} 63. Kf3 {[%clk 0:00:02.6]} 63... Kf5 {[%clk
0:00:35.7]} 64. Rf7+ {[%clk 0:00:03]} 64... Nf6 {[%clk 0:00:33.6]} 65. d5 {[%clk
0:00:03.1]} 65... g4+ {[%clk 0:00:34.9]} 66. Kg2 {[%clk 0:00:04.3]} 66... Ke5
{[%clk 0:00:27.2]} 67. d6 {[%clk 0:00:05.1]} 67... Ke6 {[%clk 0:00:28.6]} 68.
Rf8 {[%clk 0:00:06.1]} 68... Nh5 {[%clk 0:00:26.5]} 69. Rh8 {[%clk 0:00:04.9]}
69... f3+ {[%clk 0:00:27.4]} 70. Kf1 {[%clk 0:00:06]} 70... Nf4 {[%clk
0:00:28.5]} 71. Rf8 {[%clk 0:00:05.7]} 71... g2+ {[%clk 0:00:29.2]} 0-1

[Event "*** Titled Tuesday Blitz"]
[Site "Chess.com"]
[Date "2018.08.07"]
[Round "2"]
[White "nonscitis"]
[Black "Marcan2b"]
[Result "1/2-1/2"]
[WhiteElo "2446"]
[BlackElo "2306"]
[TimeControl "180+2"]
[EndTime "13:23:54 PDT"]
[Termination "Game drawn - insufficient material"]

1. d4 {[%clk 0:02:57.1]} 1... Nf6 {[%clk 0:02:59.2]} 2. Nf3 {[%clk 0:02:57.4]}
2... b6 {[%clk 0:02:56.9]} 3. g3 {[%clk 0:02:51.6]} 3... Bb7 {[%clk 0:02:56.6]}
4. Bg2 {[%clk 0:02:52.7]} 4... e6 {[%clk 0:02:57.1]} 5. O-O {[%clk 0:02:54.6]}
5... Be7 {[%clk 0:02:52.9]} 6. b3 {[%clk 0:02:53.5]} 6... O-O {[%clk 0:02:53.5]}
7. Bb2 {[%clk 0:02:54.1]} 7... d5 {[%clk 0:02:49.6]} 8. Nbd2 {[%clk 0:02:51.4]}
8... Nbd7 {[%clk 0:02:49.5]} 9. Re1 {[%clk 0:02:49.7]} 9... c5 {[%clk 0:02:48]}
10. c4 {[%clk 0:02:48.6]} 10... dxc4 {[%clk 0:02:46.7]} 11. Nxc4 {[%clk
0:02:49.2]} 11... cxd4 {[%clk 0:02:46]} 12. Qxd4 {[%clk 0:02:48.1]} 12... Nc5
{[%clk 0:02:34.3]} 13. Red1 {[%clk 0:02:47.8]} 13... Qxd4 {[%clk 0:02:34.2]} 14.
Nxd4 {[%clk 0:02:49.1]} 14... Bxg2 {[%clk 0:02:31.8]} 15. Kxg2 {[%clk 0:02:51]}
15... Rac8 {[%clk 0:02:21.2]} 16. Ne5 {[%clk 0:02:49.9]} 16... Nd5 {[%clk
0:01:45.7]} 17. Ndc6 {[%clk 0:02:33.1]} 17... Bf6 {[%clk 0:01:34]} 18. Nxa7
{[%clk 0:02:28.6]} 18... Ra8 {[%clk 0:01:22.3]} 19. Nb5 {[%clk 0:02:19.4]} 19...
Ra5 {[%clk 0:01:09.7]} 20. Nd6 {[%clk 0:02:20.4]} 20... Rfa8 {[%clk 0:01:07]}
21. Nec4 {[%clk 0:00:23.4]} 21... Rxa2 {[%clk 0:01:01]} 22. Bxf6 {[%clk
0:00:20]} 22... gxf6 {[%clk 0:00:57.5]} 23. Rxa2 {[%clk 0:00:20.1]} 23... Rxa2
{[%clk 0:00:57.4]} 24. e4 {[%clk 0:00:17.2]} 24... Nb4 {[%clk 0:00:55.1]} 25.
Nxb6 {[%clk 0:00:16]} 25... Nbd3 {[%clk 0:00:50.8]} 26. Rf1 {[%clk 0:00:14.7]}
26... Nxb3 {[%clk 0:00:50.1]} 27. Nbc4 {[%clk 0:00:15.5]} 27... Nbc5 {[%clk
0:00:48.4]} 28. Kf3 {[%clk 0:00:12.1]} 28... Kf8 {[%clk 0:00:47.5]} 29. Ke3
{[%clk 0:00:12.1]} 29... Ke7 {[%clk 0:00:42.9]} 30. Nb7 {[%clk 0:00:12.5]} 30...
Nxb7 {[%clk 0:00:30.9]} 31. Kxd3 {[%clk 0:00:13.6]} 31... Nc5+ {[%clk
0:00:31.8]} 32. Kd4 {[%clk 0:00:14.9]} 32... Nb3+ {[%clk 0:00:30.1]} 33. Kc3
{[%clk 0:00:16]} 33... Nc5 {[%clk 0:00:29.7]} 34. Kd4 {[%clk 0:00:17.3]} 34...
Nb3+ {[%clk 0:00:30.6]} 35. Ke3 {[%clk 0:00:18.6]} 35... Rc2 {[%clk 0:00:29.9]}
36. Kd3 {[%clk 0:00:17.3]} 36... Ra2 {[%clk 0:00:28.8]} 37. Kc3 {[%clk
0:00:17.3]} 37... Nc5 {[%clk 0:00:27.9]} 38. Nd2 {[%clk 0:00:17.8]} 38... Ra4
{[%clk 0:00:23.9]} 39. f3 {[%clk 0:00:18]} 39... Ra2 {[%clk 0:00:24.5]} 40. Rb1
{[%clk 0:00:18]} 40... Kf8 {[%clk 0:00:23.5]} 41. Rb5 {[%clk 0:00:18.3]} 41...
Nd7 {[%clk 0:00:23.3]} 42. Rb7 {[%clk 0:00:18.8]} 42... Ne5 {[%clk 0:00:23.5]}
43. f4 {[%clk 0:00:19.4]} 43... Ng4 {[%clk 0:00:23.9]} 44. h3 {[%clk 0:00:20]}
44... Nf2 {[%clk 0:00:24.4]} 45. h4 {[%clk 0:00:19.4]} 45... Ng4 {[%clk
0:00:23.8]} 46. Nc4 {[%clk 0:00:19.8]} 46... Rg2 {[%clk 0:00:23.6]} 47. e5
{[%clk 0:00:20.5]} 47... Rxg3+ {[%clk 0:00:23.7]} 48. Kd4 {[%clk 0:00:21.2]}
48... fxe5+ {[%clk 0:00:24.4]} 49. fxe5 {[%clk 0:00:22.1]} 49... Nh6 {[%clk
0:00:24.3]} 50. Nd6 {[%clk 0:00:21.8]} 50... Rg4+ {[%clk 0:00:22]} 51. Kc5
{[%clk 0:00:22.9]} 51... Rxh4 {[%clk 0:00:22.9]} 52. Rb8+ {[%clk 0:00:24.3]}
52... Kg7 {[%clk 0:00:23.3]} 53. Ne8+ {[%clk 0:00:25.6]} 53... Kg6 {[%clk
0:00:24.1]} 54. Nf6 {[%clk 0:00:26.7]} 54... Rh1 {[%clk 0:00:23.2]} 55. Rb2
{[%clk 0:00:25.9]} 55... Rc1+ {[%clk 0:00:22.6]} 56. Kd6 {[%clk 0:00:26.9]}
56... Rd1+ {[%clk 0:00:23.2]} 57. Ke7 {[%clk 0:00:27.6]} 57... Nf5+ {[%clk
0:00:23.3]} 58. Ke8 {[%clk 0:00:28.3]} 58... Rg1 {[%clk 0:00:18.5]} 59. Nd7
{[%clk 0:00:27.9]} 59... h5 {[%clk 0:00:18.6]} 60. Nf8+ {[%clk 0:00:28.7]} 60...
Kg7 {[%clk 0:00:19.7]} 61. Nd7 {[%clk 0:00:29.8]} 61... h4 {[%clk 0:00:19.2]}
62. Rh2 {[%clk 0:00:30.5]} 62... Rg3 {[%clk 0:00:14.8]} 63. Nf6 {[%clk
0:00:30.9]} 63... Kg6 {[%clk 0:00:14.1]} 64. Kd7 {[%clk 0:00:29.4]} 64... h3
{[%clk 0:00:14.5]} 65. Rh1 {[%clk 0:00:29.9]} 65... Kg5 {[%clk 0:00:14.6]} 66.
Ne4+ {[%clk 0:00:30.4]} 66... Kf4 {[%clk 0:00:15.8]} 67. Nxg3 {[%clk 0:00:31.6]}
67... Kxg3 {[%clk 0:00:17.5]} 68. Ke8 {[%clk 0:00:32.6]} 68... Nh6 {[%clk
0:00:18.2]} 69. Kf8 {[%clk 0:00:33.9]} 69... Kg2 {[%clk 0:00:16.9]} 70. Ra1
{[%clk 0:00:34.9]} 70... h2 {[%clk 0:00:17.8]} 71. Kg7 {[%clk 0:00:36.1]} 71...
Ng4 {[%clk 0:00:18.4]} 72. Kxf7 {[%clk 0:00:35.9]} 72... Nxe5+ {[%clk
0:00:19.4]} 73. Kxe6 {[%clk 0:00:37]} 73... h1=Q {[%clk 0:00:18.9]} 74. Rxh1
{[%clk 0:00:36.8]} 74... Kxh1 {[%clk 0:00:20.7]} 1/2-1/2